[Event "Titled Tuesday Blitz April 05 Early 2022"]
[White "Alboredo, Julia"]
[Black "Rohith Krishna S"]
[WhiteFideId "2124807"]
[BlackFideId "46617051"]
[WhiteElo "2041"]
[BlackElo "2117"]
[Result "0-1"]
[Round "01"]
[TimeControl "180+1"]
[Date "2022.04.05"]
[WhiteClock "0:00:11"]
[BlackClock "0:01:03"]

1. e4 {[%clk 0:03:00]}  e5 {[%clk 0:02:57]} 2. Nf3 {[%clk 0:03:00]}  Nc6 {[%clk 0:02:57]} 3. d4 {[%clk 0:02:59]}  exd4 {[%clk 0:02:57]} 4. Bc4 {[%clk 0:02:59]}  Bc5 {[%clk 0:02:57]} 5. c3 {[%clk 0:02:58]}  Nf6 {[%clk 0:02:55]} 6. e5 {[%clk 0:02:58]}  d5 {[%clk 0:02:56]} 7. Be2 {[%clk 0:02:58]}  Ne4 {[%clk 0:02:55]} 8. cxd4 {[%clk 0:02:57]}  Bb4+ {[%clk 0:02:56]} 9. Bd2 {[%clk 0:02:55]}  Nxd2 {[%clk 0:02:55]} 10. Nbxd2 {[%clk 0:02:55]}  O-O {[%clk 0:02:54]} 11. O-O {[%clk 0:02:49]}  f6 {[%clk 0:02:51]} 12. Bb5 {[%clk 0:02:44]}  Bd7 {[%clk 0:02:47]} 13. a3 {[%clk 0:02:38]}  Be7 {[%clk 0:02:45]} 14. Re1 {[%clk 0:02:34]}  a6 {[%clk 0:02:44]} 15. Bd3 {[%clk 0:02:27]}  fxe5 {[%clk 0:02:44]} 16. dxe5 {[%clk 0:02:23]}  h6 {[%clk 0:02:37]} 17. Nb3 {[%clk 0:02:00]}  Bg4 {[%clk 0:02:32]} 18. Be2 {[%clk 0:01:52]}  Qd7 {[%clk 0:02:04]} 19. h3 {[%clk 0:01:31]}  Be6 {[%clk 0:02:01]} 20. Nbd4 {[%clk 0:01:26]}  Nxd4 {[%clk 0:02:01]} 21. Nxd4 {[%clk 0:01:27]}  Bc5 {[%clk 0:02:01]} 22. Bf3 {[%clk 0:01:21]}  Rad8 {[%clk 0:01:58]} 23. Qd2 {[%clk 0:01:15]}  Bxh3 {[%clk 0:01:43]} 24. e6 {[%clk 0:01:10]}  Qe7 {[%clk 0:01:42]} 25. Rac1 {[%clk 0:00:41]}  Bxd4 {[%clk 0:01:42]} 26. Qxd4 {[%clk 0:00:41]}  Rxf3 {[%clk 0:01:43]} 27. Rxc7 {[%clk 0:00:27]}  Qxc7 {[%clk 0:01:40]} 28. gxf3 {[%clk 0:00:25]}  Qe7 {[%clk 0:01:37]} 29. Qe5 {[%clk 0:00:14]}  Re8 {[%clk 0:01:28]} 30. Qxd5 {[%clk 0:00:12]}  Bxe6 {[%clk 0:01:10]} 31. Qe5 {[%clk 0:00:12]}  Qf7 {[%clk 0:01:08]} 32. f4 {[%clk 0:00:12]}  Bd7 {[%clk 0:01:04]} 33. Qc3 {[%clk 0:00:12]}  Qg6+ {[%clk 0:01:03]} 34. Kf1 {[%clk 0:00:11]}  Bb5+ {[%clk 0:01:03]} 0-1


[Site "https://www.chess.com"]

[Event "Titled Tuesday Blitz April 05 Early 2022"]
[White "Andreikin, Dmitry"]
[Black "Sanchez Alvares, Kelvin Antonio"]
[WhiteFideId "4158814"]
[BlackFideId "3906680"]
[WhiteElo "2736"]
[BlackElo "2193"]
[Result "1-0"]
[Round "01"]
[TimeControl "180+1"]
[Date "2022.04.05"]
[WhiteClock "0:01:32"]
[BlackClock "0:00:56"]

1. d4 {[%clk 0:02:59]}  Nf6 {[%clk 0:02:58]} 2. Nf3 {[%clk 0:03:00]}  c5 {[%clk 0:02:56]} 3. d5 {[%clk 0:03:00]}  g6 {[%clk 0:02:53]} 4. Nc3 {[%clk 0:02:57]}  Bg7 {[%clk 0:02:52]} 5. e4 {[%clk 0:02:57]}  d6 {[%clk 0:02:53]} 6. Bb5+ {[%clk 0:02:57]}  Bd7 {[%clk 0:02:51]} 7. a4 {[%clk 0:02:57]}  O-O {[%clk 0:02:51]} 8. h3 {[%clk 0:02:56]}  Na6 {[%clk 0:02:50]} 9. O-O {[%clk 0:02:55]}  Bxb5 {[%clk 0:02:48]} 10. axb5 {[%clk 0:02:55]}  Nc7 {[%clk 0:02:49]} 11. Re1 {[%clk 0:02:52]}  Nd7 {[%clk 0:02:48]} 12. Bf4 {[%clk 0:02:50]}  a6 {[%clk 0:02:43]} 13. bxa6 {[%clk 0:02:47]}  b5 {[%clk 0:02:43]} 14. Qd2 {[%clk 0:02:39]}  b4 {[%clk 0:02:41]} 15. Nd1 {[%clk 0:02:40]}  Nb6 {[%clk 0:02:30]} 16. Bh6 {[%clk 0:02:36]}  e5 {[%clk 0:02:12]} 17. dxe6 {[%clk 0:02:31]}  fxe6 {[%clk 0:02:11]} 18. Bxg7 {[%clk 0:02:30]}  Kxg7 {[%clk 0:02:11]} 19. Ne3 {[%clk 0:02:29]}  h5 {[%clk 0:01:56]} 20. a7 {[%clk 0:01:50]}  Nb5 {[%clk 0:01:28]} 21. e5 {[%clk 0:01:51]}  d5 {[%clk 0:01:25]} 22. Ra5 {[%clk 0:01:49]}  Rxf3 {[%clk 0:01:22]} 23. Rxb5 {[%clk 0:01:47]}  Rf4 {[%clk 0:01:09]} 24. Rxb6 {[%clk 0:01:37]}  Rd4 {[%clk 0:01:02]} 25. Rb7+ {[%clk 0:01:36]}  Kg8 {[%clk 0:01:01]} 26. Qe2 {[%clk 0:01:35]}  Qc8 {[%clk 0:00:56]} 27. Qa6 {[%clk 0:01:32]} 1-0


[Site "https://www.chess.com"]

[Event "Titled Tuesday Blitz April 05 Early 2022"]
[White "Astafurov, Arseniy"]
[Black "Fier, Alexandr"]
[WhiteFideId "24175218"]
[BlackFideId "2107139"]
[WhiteElo "2163"]
[BlackElo "2571"]
[Result "0-1"]
[Round "01"]
[TimeControl "180+1"]
[Date "2022.04.05"]
[WhiteClock "0:00:39"]
[BlackClock "0:01:27"]

1. c4 {[%clk 0:02:58]}  Nf6 {[%clk 0:02:57]} 2. Nf3 {[%clk 0:02:58]}  g6 {[%clk 0:02:57]} 3. g3 {[%clk 0:02:57]}  Bg7 {[%clk 0:02:57]} 4. Bg2 {[%clk 0:02:58]}  O-O {[%clk 0:02:57]} 5. Nc3 {[%clk 0:02:58]}  d6 {[%clk 0:02:57]} 6. d4 {[%clk 0:02:57]}  Nc6 {[%clk 0:02:57]} 7. O-O {[%clk 0:02:58]}  Rb8 {[%clk 0:02:57]} 8. d5 {[%clk 0:02:50]}  Na5 {[%clk 0:02:56]} 9. b3 {[%clk 0:02:50]}  c5 {[%clk 0:02:56]} 10. dxc6 {[%clk 0:02:47]}  bxc6 {[%clk 0:02:57]} 11. Bd2 {[%clk 0:02:42]}  c5 {[%clk 0:02:56]} 12. Qc1 {[%clk 0:02:39]}  Re8 {[%clk 0:02:54]} 13. Rd1 {[%clk 0:02:40]}  Nc6 {[%clk 0:02:51]} 14. Bh6 {[%clk 0:02:22]}  Bh8 {[%clk 0:02:50]} 15. h3 {[%clk 0:02:22]}  Bb7 {[%clk 0:02:45]} 16. Rb1 {[%clk 0:02:17]}  Qa5 {[%clk 0:02:43]} 17. Qd2 {[%clk 0:02:14]}  Ng4 {[%clk 0:02:32]} 18. hxg4 {[%clk 0:02:04]}  Qxc3 {[%clk 0:02:32]} 19. Rbc1 {[%clk 0:01:51]}  Qxd2 {[%clk 0:02:31]} 20. Bxd2 {[%clk 0:01:52]}  a5 {[%clk 0:02:30]} 21. g5 {[%clk 0:01:50]}  a4 {[%clk 0:02:27]} 22. bxa4 {[%clk 0:01:46]}  Nb4 {[%clk 0:02:02]} 23. a3 {[%clk 0:01:37]}  Na6 {[%clk 0:01:58]} 24. Rb1 {[%clk 0:01:36]}  Be4 {[%clk 0:01:56]} 25. Rxb8 {[%clk 0:01:32]}  Rxb8 {[%clk 0:01:57]} 26. Ne1 {[%clk 0:01:28]}  Bxg2 {[%clk 0:01:55]} 27. Kxg2 {[%clk 0:01:27]}  Rb2 {[%clk 0:01:49]} 28. Nd3 {[%clk 0:01:18]}  Rb3 {[%clk 0:01:47]} 29. a5 {[%clk 0:01:00]}  Bc3 {[%clk 0:01:36]} 30. Bxc3 {[%clk 0:00:54]}  Rxc3 {[%clk 0:01:37]} 31. Rb1 {[%clk 0:00:54]}  Rxa3 {[%clk 0:01:33]} 32. Rb7 {[%clk 0:00:39]}  Kf8 {[%clk 0:01:28]} 33. Rc7 {[%clk 0:00:39]}  Nxc7 {[%clk 0:01:27]} 0-1


[Site "https://www.chess.com"]

[Event "Titled Tuesday Blitz April 05 Early 2022"]
[White "Baches Garcia, Guillermo"]
[Black "Sychev, Klementy"]
[WhiteFideId "2209764"]
[BlackFideId "4114060"]
[WhiteElo "2482"]
[BlackElo "2564"]
[Result "0-1"]
[Round "01"]
[TimeControl "180+1"]
[Date "2022.04.05"]
[WhiteClock "0:00:02"]
[BlackClock "0:00:03"]

1. e4 {[%clk 0:03:00]}  c5 {[%clk 0:02:57]} 2. Nf3 {[%clk 0:03:01]}  d6 {[%clk 0:02:57]} 3. d4 {[%clk 0:03:01]}  cxd4 {[%clk 0:02:57]} 4. Nxd4 {[%clk 0:03:02]}  Nf6 {[%clk 0:02:58]} 5. Nc3 {[%clk 0:03:02]}  a6 {[%clk 0:02:53]} 6. Bd3 {[%clk 0:03:02]}  e5 {[%clk 0:02:52]} 7. Nde2 {[%clk 0:03:02]}  Be7 {[%clk 0:02:52]} 8. O-O {[%clk 0:03:02]}  O-O {[%clk 0:02:52]} 9. Ng3 {[%clk 0:03:02]}  Be6 {[%clk 0:02:52]} 10. Nd5 {[%clk 0:03:02]}  Bxd5 {[%clk 0:02:50]} 11. exd5 {[%clk 0:03:02]}  g6 {[%clk 0:02:48]} 12. c4 {[%clk 0:03:01]}  Nbd7 {[%clk 0:02:48]} 13. Be3 {[%clk 0:02:55]}  a5 {[%clk 0:02:38]} 14. Bc2 {[%clk 0:02:47]}  Ne8 {[%clk 0:02:30]} 15. Ba4 {[%clk 0:02:39]}  f5 {[%clk 0:02:25]} 16. f4 {[%clk 0:02:35]}  Nef6 {[%clk 0:02:25]} 17. h3 {[%clk 0:02:20]}  Qc7 {[%clk 0:02:24]} 18. Rc1 {[%clk 0:02:14]}  Rf7 {[%clk 0:02:19]} 19. a3 {[%clk 0:02:05]}  Bf8 {[%clk 0:02:19]} 20. b4 {[%clk 0:02:01]}  axb4 {[%clk 0:02:18]} 21. axb4 {[%clk 0:02:02]}  exf4 {[%clk 0:02:18]} 22. Bxf4 {[%clk 0:01:55]}  Qb6+ {[%clk 0:02:17]} 23. c5 {[%clk 0:01:36]}  dxc5 {[%clk 0:02:17]} 24. Bxd7 {[%clk 0:00:54]}  cxb4+ {[%clk 0:02:11]} 25. Kh1 {[%clk 0:00:54]}  Rxd7 {[%clk 0:02:11]} 26. Qb3 {[%clk 0:00:40]}  Ra3 {[%clk 0:02:08]} 27. Qc4 {[%clk 0:00:40]}  Rxd5 {[%clk 0:02:00]} 28. Rfd1 {[%clk 0:00:38]}  Qe6 {[%clk 0:01:59]} 29. Re1 {[%clk 0:00:36]}  Qf7 {[%clk 0:01:56]} 30. Qc8 {[%clk 0:00:32]}  b3 {[%clk 0:01:43]} 31. Bh6 {[%clk 0:00:26]}  b2 {[%clk 0:01:42]} 32. Rb1 {[%clk 0:00:26]}  Rxg3 {[%clk 0:01:41]} 33. Rxb2 {[%clk 0:00:23]}  Rc5 {[%clk 0:01:37]} 34. Qd8 {[%clk 0:00:19]}  Rd5 {[%clk 0:01:11]} 35. Qc8 {[%clk 0:00:17]}  b5 {[%clk 0:01:12]} 36. Ra2 {[%clk 0:00:15]}  Rc5 {[%clk 0:01:01]} 37. Qd8 {[%clk 0:00:13]}  Rd3 {[%clk 0:00:38]} 38. Qxd3 {[%clk 0:00:09]}  Bxh6 {[%clk 0:00:28]} 39. Qd6 {[%clk 0:00:09]}  Bf8 {[%clk 0:00:27]} 40. Ra8 {[%clk 0:00:09]}  Kg7 {[%clk 0:00:14]} 41. Qd8 {[%clk 0:00:05]}  b4 {[%clk 0:00:09]} 42. Qb8 {[%clk 0:00:05]}  Rc7 {[%clk 0:00:08]} 43. Ra6 {[%clk 0:00:02]}  b3 {[%clk 0:00:04]} 44. Rb6 {[%clk 0:00:02]}  Ne4 {[%clk 0:00:03]} 45. Rxb3 {[%clk 0:00:02]}  Re7 {[%clk 0:00:03]} 46. Reb1 {[%clk 0:00:01]}  Kh6 {[%clk 0:00:03]} 47. Rb7 {[%clk 0:00:02]}  Rxb7 {[%clk 0:00:02]} 48. Qxb7 {[%clk 0:00:02]}  Qf6 {[%clk 0:00:03]} 49. Qb8 {[%clk 0:00:02]}  Bd6 {[%clk 0:00:03]} 50. Qb3 {[%clk 0:00:01]}  Qe5 {[%clk 0:00:03]} 51. Qf3 {[%clk 0:00:02]}  Qh2# {[%clk 0:00:03]} 0-1


[Site "https://www.chess.com"]

[Event "Titled Tuesday Blitz April 05 Early 2022"]
[White "Badelka, Olga"]
[Black "Shubin, Kirill"]
[WhiteFideId "13509926"]
[BlackFideId "34119962"]
[WhiteElo "2165"]
[BlackElo "2522"]
[Result "0-1"]
[Round "01"]
[TimeControl "180+1"]
[Date "2022.04.05"]
[WhiteClock "0:00:13"]
[BlackClock "0:00:29"]

1. c4 {[%clk 0:02:57]}  e5 {[%clk 0:02:58]} 2. g3 {[%clk 0:02:56]}  Nc6 {[%clk 0:02:57]} 3. Bg2 {[%clk 0:02:56]}  g6 {[%clk 0:02:53]} 4. Nc3 {[%clk 0:02:56]}  Bg7 {[%clk 0:02:52]} 5. e3 {[%clk 0:02:56]}  Nge7 {[%clk 0:02:52]} 6. Nge2 {[%clk 0:02:55]}  O-O {[%clk 0:02:51]} 7. O-O {[%clk 0:02:46]}  d6 {[%clk 0:02:50]} 8. Nd5 {[%clk 0:02:43]}  Be6 {[%clk 0:02:46]} 9. Nec3 {[%clk 0:02:42]}  Qd7 {[%clk 0:02:43]} 10. Re1 {[%clk 0:02:39]}  f5 {[%clk 0:02:35]} 11. Rb1 {[%clk 0:02:28]}  a5 {[%clk 0:02:34]} 12. a3 {[%clk 0:02:27]}  e4 {[%clk 0:02:28]} 13. d3 {[%clk 0:02:15]}  exd3 {[%clk 0:02:27]} 14. Qxd3 {[%clk 0:02:14]}  Ne5 {[%clk 0:02:23]} 15. Qe2 {[%clk 0:02:13]}  Rab8 {[%clk 0:02:12]} 16. Nxe7+ {[%clk 0:02:00]}  Qxe7 {[%clk 0:02:11]} 17. Nd5 {[%clk 0:02:01]}  Qf7 {[%clk 0:02:11]} 18. b3 {[%clk 0:01:58]}  b5 {[%clk 0:01:55]} 19. Nf4 {[%clk 0:01:37]}  bxc4 {[%clk 0:01:44]} 20. Nxe6 {[%clk 0:01:37]}  Qxe6 {[%clk 0:01:45]} 21. b4 {[%clk 0:01:31]}  axb4 {[%clk 0:01:44]} 22. axb4 {[%clk 0:01:30]}  Nd3 {[%clk 0:01:38]} 23. Rd1 {[%clk 0:01:29]}  Kh8 {[%clk 0:01:36]} 24. Bd2 {[%clk 0:01:24]}  d5 {[%clk 0:01:28]} 25. b5 {[%clk 0:01:13]}  c6 {[%clk 0:01:03]} 26. bxc6 {[%clk 0:01:02]}  Qxc6 {[%clk 0:01:01]} 27. h4 {[%clk 0:00:52]}  h5 {[%clk 0:00:59]} 28. Be1 {[%clk 0:00:29]}  Rfd8 {[%clk 0:00:42]} 29. Rxb8 {[%clk 0:00:25]}  Rxb8 {[%clk 0:00:42]} 30. Qf3 {[%clk 0:00:23]}  c3 {[%clk 0:00:31]} 31. Rxd3 {[%clk 0:00:13]}  Rb1 {[%clk 0:00:29]} 0-1


[Site "https://www.chess.com"]

[Event "Titled Tuesday Blitz April 05 Early 2022"]
[White "Buscar, Michael"]
[Black "Kosteniuk, Alexandra"]
[WhiteFideId "2603616"]
[BlackFideId "4128125"]
[WhiteElo "2010"]
[BlackElo "2469"]
[Result "1/2-1/2"]
[Round "01"]
[TimeControl "180+1"]
[Date "2022.04.05"]
[WhiteClock "0:00:11"]
[BlackClock "0:00:21"]

1. Nf3 {[%clk 0:02:53]}  d5 {[%clk 0:02:56]} 2. g3 {[%clk 0:02:50]}  c6 {[%clk 0:02:54]} 3. Bg2 {[%clk 0:02:47]}  Bg4 {[%clk 0:02:54]} 4. d4 {[%clk 0:02:42]}  Nd7 {[%clk 0:02:51]} 5. O-O {[%clk 0:02:41]}  Ngf6 {[%clk 0:02:45]} 6. c4 {[%clk 0:02:40]}  e6 {[%clk 0:02:38]} 7. b3 {[%clk 0:02:40]}  Be7 {[%clk 0:02:35]} 8. Bb2 {[%clk 0:02:40]}  O-O {[%clk 0:02:35]} 9. Nbd2 {[%clk 0:02:36]}  a5 {[%clk 0:02:31]} 10. a3 {[%clk 0:02:24]}  a4 {[%clk 0:02:09]} 11. b4 {[%clk 0:02:21]}  Re8 {[%clk 0:01:57]} 12. Re1 {[%clk 0:02:10]}  Bf8 {[%clk 0:01:47]} 13. Ne5 {[%clk 0:02:03]}  Nxe5 {[%clk 0:01:45]} 14. dxe5 {[%clk 0:02:04]}  Nd7 {[%clk 0:01:45]} 15. cxd5 {[%clk 0:01:56]}  exd5 {[%clk 0:01:45]} 16. f4 {[%clk 0:01:51]}  f6 {[%clk 0:01:39]} 17. Nf3 {[%clk 0:01:40]}  Bxf3 {[%clk 0:01:32]} 18. exf3 {[%clk 0:01:39]}  Qb6+ {[%clk 0:01:04]} 19. Bd4 {[%clk 0:01:32]}  c5 {[%clk 0:01:04]} 20. Bf2 {[%clk 0:01:10]}  d4 {[%clk 0:00:58]} 21. bxc5 {[%clk 0:00:56]}  Bxc5 {[%clk 0:00:57]} 22. Rb1 {[%clk 0:00:53]}  Qa7 {[%clk 0:00:50]} 23. e6 {[%clk 0:00:51]}  Nf8 {[%clk 0:00:50]} 24. f5 {[%clk 0:00:51]}  Rad8 {[%clk 0:00:48]} 25. f4 {[%clk 0:00:51]}  Re7 {[%clk 0:00:48]} 26. Qd3 {[%clk 0:00:48]}  g6 {[%clk 0:00:43]} 27. fxg6 {[%clk 0:00:44]}  hxg6 {[%clk 0:00:41]} 28. f5 {[%clk 0:00:43]}  Qa6 {[%clk 0:00:39]} 29. Qf3 {[%clk 0:00:40]}  Qd6 {[%clk 0:00:26]} 30. fxg6 {[%clk 0:00:33]}  Kg7 {[%clk 0:00:25]} 31. Rxb7 {[%clk 0:00:26]}  Nxg6 {[%clk 0:00:25]} 32. Rxe7+ {[%clk 0:00:19]}  Qxe7 {[%clk 0:00:26]} 33. Qg4 {[%clk 0:00:20]}  d3 {[%clk 0:00:23]} 34. Be4 {[%clk 0:00:17]}  Bxf2+ {[%clk 0:00:23]} 35. Kxf2 {[%clk 0:00:18]}  Qc5+ {[%clk 0:00:24]} 36. Kg2 {[%clk 0:00:18]}  Qg5 {[%clk 0:00:24]} 37. Qxg5 {[%clk 0:00:15]}  fxg5 {[%clk 0:00:25]} 38. e7 {[%clk 0:00:15]}  Nxe7 {[%clk 0:00:25]} 39. Bxd3 {[%clk 0:00:14]}  Rxd3 {[%clk 0:00:25]} 40. Rxe7+ {[%clk 0:00:15]}  Kf6 {[%clk 0:00:25]} 41. Ra7 {[%clk 0:00:13]}  Rxa3 {[%clk 0:00:25]} 42. Kh3 {[%clk 0:00:12]}  Kf5 {[%clk 0:00:26]} 43. Ra5+ {[%clk 0:00:12]}  Kf6 {[%clk 0:00:26]} 44. Ra6+ {[%clk 0:00:12]}  Kf7 {[%clk 0:00:23]} 45. Ra5 {[%clk 0:00:12]}  Kf6 {[%clk 0:00:22]} 46. Ra6+ {[%clk 0:00:12]}  Kf5 {[%clk 0:00:21]} 47. Ra5+ {[%clk 0:00:12]}  Kg6 {[%clk 0:00:21]} 48. Ra6+ {[%clk 0:00:11]}  Kf5 {[%clk 0:00:21]} 49. Ra5+ {[%clk 0:00:11]} 1/2-1/2


[Site "https://www.chess.com"]

[Event "Titled Tuesday Blitz April 05 Early 2022"]
[White "Chen, Qi b"]
[Black "Mika, Tomasz"]
[WhiteFideId "8614733"]
[BlackFideId "1132970"]
[WhiteElo "2432"]
[BlackElo "2116"]
[Result "1-0"]
[Round "01"]
[TimeControl "180+1"]
[Date "2022.04.05"]
[WhiteClock "0:00:07"]
[BlackClock "0:00:02"]

1. e4 {[%clk 0:02:57]}  c6 {[%clk 0:02:59]} 2. d4 {[%clk 0:02:55]}  d5 {[%clk 0:03:00]} 3. e5 {[%clk 0:02:55]}  Bf5 {[%clk 0:03:00]} 4. c4 {[%clk 0:02:52]}  e6 {[%clk 0:02:58]} 5. Nc3 {[%clk 0:02:52]}  dxc4 {[%clk 0:02:47]} 6. Bxc4 {[%clk 0:02:51]}  Bb4 {[%clk 0:02:46]} 7. Ne2 {[%clk 0:02:47]}  Ne7 {[%clk 0:02:45]} 8. O-O {[%clk 0:02:45]}  O-O {[%clk 0:02:43]} 9. Qb3 {[%clk 0:02:40]}  Bxc3 {[%clk 0:02:31]} 10. Qxc3 {[%clk 0:02:30]}  Nd7 {[%clk 0:02:22]} 11. Bg5 {[%clk 0:02:07]}  h6 {[%clk 0:02:19]} 12. Bh4 {[%clk 0:02:07]}  Re8 {[%clk 0:02:12]} 13. Rad1 {[%clk 0:01:59]}  Rc8 {[%clk 0:02:09]} 14. Rfe1 {[%clk 0:01:58]}  Qb6 {[%clk 0:02:04]} 15. Bxe7 {[%clk 0:01:03]}  Rxe7 {[%clk 0:02:04]} 16. Ng3 {[%clk 0:01:03]}  Bh7 {[%clk 0:01:56]} 17. Ne4 {[%clk 0:01:02]}  Bxe4 {[%clk 0:01:55]} 18. Rxe4 {[%clk 0:01:02]}  Nf8 {[%clk 0:01:21]} 19. h4 {[%clk 0:01:01]}  Rd8 {[%clk 0:01:18]} 20. b4 {[%clk 0:00:59]}  Red7 {[%clk 0:00:56]} 21. h5 {[%clk 0:00:58]}  g5 {[%clk 0:00:37]} 22. Bb3 {[%clk 0:00:53]}  Kg7 {[%clk 0:00:28]} 23. Bc2 {[%clk 0:00:46]}  a5 {[%clk 0:00:28]} 24. a3 {[%clk 0:00:37]}  axb4 {[%clk 0:00:26]} 25. axb4 {[%clk 0:00:38]}  Ra8 {[%clk 0:00:26]} 26. Rg4 {[%clk 0:00:31]}  Ra2 {[%clk 0:00:20]} 27. Kh2 {[%clk 0:00:27]}  Qa6 {[%clk 0:00:18]} 28. Rd3 {[%clk 0:00:12]}  Ra1 {[%clk 0:00:13]} 29. f4 {[%clk 0:00:13]}  Qa2 {[%clk 0:00:09]} 30. fxg5 {[%clk 0:00:11]}  Rc1 {[%clk 0:00:08]} 31. gxh6+ {[%clk 0:00:10]}  Kh8 {[%clk 0:00:08]} 32. Rdg3 {[%clk 0:00:10]}  Rxc2 {[%clk 0:00:05]} 33. Qd3 {[%clk 0:00:07]}  f5 {[%clk 0:00:02]} 34. exf6 {[%clk 0:00:07]} 1-0


[Site "https://www.chess.com"]

[Event "Titled Tuesday Blitz April 05 Early 2022"]
[White "Cori T., Deysi"]
[Black "Manon-og, Ramon Jr."]
[WhiteFideId "3801934"]
[BlackFideId "5200776"]
[WhiteElo "2341"]
[BlackElo "2254"]
[Result "1-0"]
[Round "01"]
[TimeControl "180+1"]
[Date "2022.04.05"]
[WhiteClock "0:01:07"]
[BlackClock "0:00:03"]

1. d4 {[%clk 0:02:59]}  Nf6 {[%clk 0:02:59]} 2. Nf3 {[%clk 0:02:58]}  g6 {[%clk 0:02:59]} 3. g3 {[%clk 0:02:58]}  d5 {[%clk 0:02:59]} 4. Bg2 {[%clk 0:02:58]}  Bg7 {[%clk 0:03:00]} 5. O-O {[%clk 0:02:58]}  O-O {[%clk 0:03:00]} 6. Ne5 {[%clk 0:02:59]}  c6 {[%clk 0:03:00]} 7. c4 {[%clk 0:02:58]}  dxc4 {[%clk 0:03:00]} 8. Nxc4 {[%clk 0:02:56]}  Be6 {[%clk 0:03:00]} 9. Ne3 {[%clk 0:02:55]}  Nbd7 {[%clk 0:02:59]} 10. Nc3 {[%clk 0:02:54]}  Nb6 {[%clk 0:02:58]} 11. Qd3 {[%clk 0:02:53]}  Rc8 {[%clk 0:02:56]} 12. Rd1 {[%clk 0:02:53]}  Nbd5 {[%clk 0:02:55]} 13. a3 {[%clk 0:02:51]}  Nxc3 {[%clk 0:02:49]} 14. bxc3 {[%clk 0:02:49]}  Nd5 {[%clk 0:02:49]} 15. c4 {[%clk 0:02:46]}  Nxe3 {[%clk 0:02:44]} 16. Bxe3 {[%clk 0:02:47]}  c5 {[%clk 0:02:26]} 17. Bxb7 {[%clk 0:02:30]}  Rc7 {[%clk 0:02:25]} 18. Ba6 {[%clk 0:02:30]}  Qd6 {[%clk 0:01:36]} 19. Bb5 {[%clk 0:02:21]}  Bf5 {[%clk 0:01:33]} 20. Qd2 {[%clk 0:02:11]}  a6 {[%clk 0:01:31]} 21. Bf4 {[%clk 0:02:11]}  e5 {[%clk 0:01:30]} 22. dxe5 {[%clk 0:02:01]}  Qxd2 {[%clk 0:01:30]} 23. Rxd2 {[%clk 0:02:01]}  axb5 {[%clk 0:01:30]} 24. cxb5 {[%clk 0:02:01]}  c4 {[%clk 0:01:23]} 25. Rc1 {[%clk 0:02:00]}  c3 {[%clk 0:01:21]} 26. Rd4 {[%clk 0:01:59]}  Ra8 {[%clk 0:01:05]} 27. a4 {[%clk 0:01:54]}  g5 {[%clk 0:01:00]} 28. Bxg5 {[%clk 0:01:51]}  Bxe5 {[%clk 0:01:00]} 29. Rd5 {[%clk 0:01:49]}  f6 {[%clk 0:01:00]} 30. Bxf6 {[%clk 0:01:41]}  Bxf6 {[%clk 0:01:01]} 31. Rxf5 {[%clk 0:01:41]}  Kg7 {[%clk 0:00:58]} 32. b6 {[%clk 0:01:41]}  Rc6 {[%clk 0:00:32]} 33. a5 {[%clk 0:01:40]}  c2 {[%clk 0:00:23]} 34. Rb5 {[%clk 0:01:30]}  Rd8 {[%clk 0:00:14]} 35. Kg2 {[%clk 0:01:29]}  Rd1 {[%clk 0:00:11]} 36. b7 {[%clk 0:01:20]}  Rxc1 {[%clk 0:00:11]} 37. b8=Q {[%clk 0:01:19]}  Rg1+ {[%clk 0:00:11]} 38. Kxg1 {[%clk 0:01:18]}  c1=Q+ {[%clk 0:00:12]} 39. Kg2 {[%clk 0:01:19]}  Rc7 {[%clk 0:00:09]} 40. Rb6 {[%clk 0:01:11]}  Qc5 {[%clk 0:00:07]} 41. e4 {[%clk 0:01:07]}  Qxa5 {[%clk 0:00:05]} 42. Qxc7+ {[%clk 0:01:07]}  Kg6 {[%clk 0:00:04]} 43. Rxf6+ {[%clk 0:01:06]}  Kxf6 {[%clk 0:00:03]} 44. Qxa5 {[%clk 0:01:07]} 1-0


[Site "https://www.chess.com"]

[Event "Titled Tuesday Blitz April 05 Early 2022"]
[White "Coto Mederos, Michel"]
[Black "Rottenwohrer Suarez, Juan"]
[WhiteFideId "3508528"]
[BlackFideId "32068182"]
[WhiteElo "2427"]
[BlackElo "2158"]
[Result "1-0"]
[Round "01"]
[TimeControl "180+1"]
[Date "2022.04.05"]
[WhiteClock "0:00:03"]
[BlackClock "0:00:02"]

1. c4 {[%clk 0:02:57]}  Nf6 {[%clk 0:02:59]} 2. Nc3 {[%clk 0:02:55]}  g6 {[%clk 0:02:55]} 3. g3 {[%clk 0:02:55]}  Bg7 {[%clk 0:02:55]} 4. Bg2 {[%clk 0:02:55]}  O-O {[%clk 0:02:55]} 5. e3 {[%clk 0:02:52]}  c5 {[%clk 0:02:44]} 6. Nge2 {[%clk 0:02:45]}  Nc6 {[%clk 0:02:37]} 7. O-O {[%clk 0:02:43]}  d6 {[%clk 0:02:23]} 8. d4 {[%clk 0:02:21]}  cxd4 {[%clk 0:02:22]} 9. exd4 {[%clk 0:02:20]}  Bf5 {[%clk 0:02:13]} 10. h3 {[%clk 0:01:54]}  Rc8 {[%clk 0:01:59]} 11. Be3 {[%clk 0:01:53]}  a6 {[%clk 0:01:40]} 12. d5 {[%clk 0:01:34]}  Na5 {[%clk 0:01:30]} 13. b3 {[%clk 0:01:34]}  Ne8 {[%clk 0:01:11]} 14. Rc1 {[%clk 0:01:28]}  Bd7 {[%clk 0:01:06]} 15. Bd4 {[%clk 0:01:20]}  b5 {[%clk 0:01:00]} 16. Bxg7 {[%clk 0:01:19]}  Nxg7 {[%clk 0:00:54]} 17. cxb5 {[%clk 0:01:19]}  axb5 {[%clk 0:00:55]} 18. Qd2 {[%clk 0:01:09]}  Qb6 {[%clk 0:00:53]} 19. Nd4 {[%clk 0:01:03]}  Rc7 {[%clk 0:00:46]} 20. Nce2 {[%clk 0:00:43]}  Rfc8 {[%clk 0:00:44]} 21. Rxc7 {[%clk 0:00:42]}  Rxc7 {[%clk 0:00:45]} 22. Rc1 {[%clk 0:00:42]}  Nf5 {[%clk 0:00:38]} 23. Nxf5 {[%clk 0:00:36]}  Bxf5 {[%clk 0:00:37]} 24. Rc3 {[%clk 0:00:29]}  Nb7 {[%clk 0:00:33]} 25. b4 {[%clk 0:00:26]}  Nd8 {[%clk 0:00:19]} 26. Nd4 {[%clk 0:00:25]}  Bd7 {[%clk 0:00:18]} 27. h4 {[%clk 0:00:23]}  Rxc3 {[%clk 0:00:17]} 28. Qxc3 {[%clk 0:00:23]}  Qa7 {[%clk 0:00:18]} 29. a3 {[%clk 0:00:21]}  h5 {[%clk 0:00:19]} 30. Kh2 {[%clk 0:00:21]}  Qb7 {[%clk 0:00:10]} 31. Kg1 {[%clk 0:00:20]}  f6 {[%clk 0:00:06]} 32. Nc6 {[%clk 0:00:20]}  Bxc6 {[%clk 0:00:04]} 33. dxc6 {[%clk 0:00:21]}  Qc7 {[%clk 0:00:05]} 34. Qd3 {[%clk 0:00:21]}  Kg7 {[%clk 0:00:03]} 35. Qxb5 {[%clk 0:00:20]}  e6 {[%clk 0:00:04]} 36. Qa4 {[%clk 0:00:16]}  d5 {[%clk 0:00:04]} 37. b5 {[%clk 0:00:17]}  Qb6 {[%clk 0:00:03]} 38. Qb4 {[%clk 0:00:16]}  Qc7 {[%clk 0:00:02]} 39. a4 {[%clk 0:00:16]}  f5 {[%clk 0:00:02]} 40. Qc5 {[%clk 0:00:14]}  f4 {[%clk 0:00:01]} 41. a5 {[%clk 0:00:14]}  fxg3 {[%clk 0:00:01]} 42. fxg3 {[%clk 0:00:13]}  Qxg3 {[%clk 0:00:01]} 43. Qd4+ {[%clk 0:00:12]}  Kg8 {[%clk 0:00:01]} 44. a6 {[%clk 0:00:08]}  Nxc6 {[%clk 0:00:01]} 45. bxc6 {[%clk 0:00:08]}  Qc7 {[%clk 0:00:02]} 46. Qc5 {[%clk 0:00:07]}  Kg7 {[%clk 0:00:01]} 47. a7 {[%clk 0:00:07]}  Qc8 {[%clk 0:00:02]} 48. c7 {[%clk 0:00:06]}  Kf6 {[%clk 0:00:02]} 49. a8=Q {[%clk 0:00:06]}  Qxa8 {[%clk 0:00:02]} 50. c8=Q {[%clk 0:00:06]}  Qa1+ {[%clk 0:00:03]} 51. Bf1 {[%clk 0:00:02]}  Qe5 {[%clk 0:00:03]} 52. Qf2+ {[%clk 0:00:01]}  Kg7 {[%clk 0:00:03]} 53. Qcf8+ {[%clk 0:00:02]}  Kh7 {[%clk 0:00:04]} 54. Q2f7+ {[%clk 0:00:02]}  Qg7 {[%clk 0:00:02]} 55. Q7xg7# {[%clk 0:00:03]} 1-0


[Site "https://www.chess.com"]